fUSD/lending_fUSD_20250702
["ID","MTS","AMOUNT","RATE_DAILY","PERIOD"]
[369081738,1751461840460,-460.0,0.00032876,12]
[369081740,1751461840469,-460.0,0.00032876,12]
[369081742,1751461840479,-468.54,0.00032876,12]
[369081744,1751461840492,-460.0,0.00032876,12]
[369081746,1751461840501,-460.0,0.00032876,12]
[369081748,1751461840510,-593.14,0.00032876,12]
[369081750,1751461840519,-490.0,0.00032876,12]
[369081751,1751461840528,-460.0,0.00032876,12]
[369081753,1751461840537,-490.0,0.00032876,12]
[369081755,1751461840546,-491.37292315,0.00032876,12]
[369081757,1751461840555,-460.0,0.00032876,12]
[369081759,1751461840564,-490.0,0.00032876,12]
[369081761,1751461840572,-490.0,0.00032876,12]
[369081762,1751461840582,-460.0,0.00032876,12]
[369081764,1751461840591,-460.0,0.00032876,12]
[369081766,1751461840600,-511.87484656,0.00032876,12]
[369081768,1751461840609,-334.09,0.00032876,12]
[369081770,1751461840618,-460.0,0.00032876,12]
[369081772,1751461840627,-490.0,0.00032876,12]
[369081774,1751461840636,-460.0,0.00032876,12]
[369081775,1751461840645,-490.0,0.00032876,12]
[369081777,1751461840654,-460.0,0.00032876,12]
[369081779,1751461840663,-460.0,0.00032876,12]
[369081781,1751461840673,-460.0,0.00032876,12]
[369081783,1751461840682,-460.0,0.00032876,12]
[369081785,1751461840691,-460.0,0.00032876,12]
[369081787,1751461840700,-474.82,0.00032876,12]
[369081788,1751461840710,-490.0,0.00032876,12]
[369081790,1751461840719,-1133.38,0.00032876,12]
[369081807,1751461840892,-460.0,0.00032876,7]
[369081809,1751461840902,-460.0,0.00032876,12]
[369081811,1751461840919,-460.0,0.00032876,12]
[369081813,1751461840928,-460.0,0.00032876,12]
[369081815,1751461840937,-460.0,0.00032876,12]
[369081817,1751461840947,-894.84,0.00032876,12]
[369081819,1751461840957,-460.0,0.00032876,12]
[369081820,1751461840966,-460.0,0.00032876,12]
[369081822,1751461840975,-460.0,0.00032876,12]
[369081824,1751461840985,-518.15860149,0.00032876,12]
[369081826,1751461840994,-2289.32,0.00032876,12]
[369081828,1751461841004,-460.0,0.00032876,12]
[369081830,1751461841013,-460.0,0.00032876,12]
[369081831,1751461841022,-552.67,0.00032876,12]
[369081833,1751461841032,-726.41,0.00032876,12]
[369081835,1751461841042,-460.0,0.00032876,12]
[369081837,1751461841051,-460.0,0.00032876,12]
[369081839,1751461841060,-2409.68,0.00032876,12]
[369081841,1751461841070,-550.0,0.00032876,12]
[369081843,1751461841079,-460.0,0.00032876,12]
[369081844,1751461841088,-460.0,0.00032876,12]
[369081846,1751461841098,-460.0,0.00032876,12]
[369081848,1751461841108,-500.0,0.00032876,12]
[369081850,1751461841117,-500.0,0.00032876,12]
[369081852,1751461841127,-500.0,0.00032876,12]
[369081854,1751461841136,-500.0,0.00032876,12]
[369081856,1751461841146,-500.0,0.00032876,12]
[369081858,1751461841155,-500.0,0.00032876,12]
[369081860,1751461841165,-520.0,0.00032876,12]
[369081861,1751461841174,-500.0,0.00032876,12]
[369081862,1751461841182,-460.0,0.00032876,12]
[369081863,1751461841191,-460.0,0.00032876,12]
[369081864,1751461841200,-315.19195337,0.00032876,12]
[369081865,1751461841209,-460.0,0.00032876,12]
[369081866,1751461841218,-460.0,0.00032876,12]
[369081867,1751461841227,-460.0,0.00032876,12]
[369081868,1751461841236,-460.0,0.00032876,12]
[369081869,1751461841245,-460.0,0.00032876,12]
[369081870,1751461841254,-460.0,0.00032876,12]
[369081871,1751461841263,-520.0,0.00032876,12]
[369081872,1751461841273,-460.0,0.00032876,12]
[369081873,1751461841282,-460.0,0.00032876,12]
[369081874,1751461841291,-548.98952576,0.00032876,12]
[369081875,1751461841299,-1285.53,0.00032876,12]
[369081876,1751461841309,-460.0,0.00032876,12]
[369081877,1751461841318,-520.00000003,0.00032876,12]
[369081878,1751461841327,-520.0,0.00032876,12]
[369081879,1751461841336,-460.0,0.00032876,12]
[369081880,1751461841345,-520.0,0.00032876,12]
[369081882,1751461841355,-460.0,0.00032876,12]
[369081883,1751461841364,-522.17406747,0.00032876,12]
[369081885,1751461841374,-460.0,0.00032876,12]
[369081887,1751461841383,-460.0,0.00032876,12]
[369081889,1751461841393,-460.0,0.00032876,12]
[369081891,1751461841403,-460.0,0.00032876,12]
[369081893,1751461841412,-460.0,0.00032876,12]
[369081895,1751461841421,-491.52465195,0.00032876,12]
[369081897,1751461841431,-1773.86,0.00032876,12]
[369081899,1751461841440,-460.0,0.00032876,12]
[369081901,1751461841450,-460.0,0.00032876,12]
[369081903,1751461841459,-460.0,0.00032876,12]
[369081905,1751461841469,-953.08,0.00032876,12]
[369081907,1751461841478,-521.30622119,0.00032876,12]
[369081909,1751461841488,-460.0,0.00032876,12]
[369081911,1751461841497,-460.0,0.00032876,12]
[369081913,1751461841507,-527.59648406,0.00032876,12]
[369081915,1751461841516,-460.0,0.00032876,12]
[369081917,1751461841525,-460.0,0.00032876,12]
[369081919,1751461841535,-460.0,0.00032876,12]
[369081921,1751461841544,-460.0,0.00032876,12]
[369081923,1751461841556,-888.96,0.00032876,12]
[369081925,1751461841566,-460.0,0.00032876,12]
[369081927,1751461841575,-460.0,0.00032876,12]
[369081929,1751461841585,-460.0,0.00032876,12]
[369081931,1751461841594,-239.60481127,0.00032876,12]
[369081933,1751461841605,-490.0,0.00032876,12]
[369081935,1751461841614,-328.24769017,0.00032876,12]
[369081937,1751461841624,-460.0,0.00032876,12]
[369081939,1751461841633,-460.0,0.00032876,12]
[369081942,1751461841643,-460.0,0.00032876,12]
[369081944,1751461841652,-520.0,0.00032876,12]
[369081946,1751461841662,-460.0,0.00032876,12]
[369081948,1751461841671,-460.0,0.00032876,12]
[369081950,1751461841683,-251.79779011,0.00032876,12]
[369081952,1751461841692,-460.0,0.00032876,12]
[369081954,1751461841702,-460.0,0.00032876,12]
[369081956,1751461841712,-460.0,0.00032876,12]
[369081958,1751461841723,-151.0,0.00032876,7]
[369081960,1751461841732,-151.0,0.00032876,7]
[369081962,1751461841742,-490.0,0.00032876,12]
[369081964,1751461841751,-773.32,0.00032876,12]
[369081966,1751461841761,-529.26,0.00032876,12]
[369081968,1751461841770,-520.0,0.00032876,12]
[369081970,1751461841779,-151.0,0.00032876,7]
[369081972,1751461841789,-151.0,0.00032876,7]
[369081974,1751461841798,-1156.67,0.00032876,12]
[369081976,1751461841808,-490.0,0.00032876,12]
[369081978,1751461841817,-460.0,0.00032876,12]
[369081980,1751461841826,-490.0,0.00032876,12]
[369081981,1751461841835,-1283.75,0.00032876,12]
[369081983,1751461841844,-794.05,0.00032876,12]
[369081986,1751461841854,-460.0,0.00032876,12]
[369081988,1751461841863,-460.0,0.00032876,12]
[369081990,1751461841873,-460.0,0.00032876,12]
[369081992,1751461841886,-460.0,0.00032876,12]
[369081994,1751461841897,-538.74,0.00032876,12]
[369081996,1751461841906,-460.0,0.00032876,12]
[369081998,1751461841915,-460.0,0.00032876,12]
[369082000,1751461841926,-460.0,0.00032876,12]
[369082002,1751461841936,-520.95039967,0.00032876,12]
[369082004,1751461841946,-460.0,0.00032876,12]
[369082006,1751461841955,-460.0,0.00032876,12]
[369082008,1751461841965,-460.0,0.00032876,12]
[369082010,1751461841979,-520.0,0.00032876,12]
[369082012,1751461841989,-460.0,0.00032876,12]
[369082014,1751461841999,-490.0,0.00032876,12]
[369082016,1751461842008,-460.0,0.00032876,12]
[369082018,1751461842018,-460.0,0.00032876,12]
[369082020,1751461842027,-460.0,0.00032876,12]
[369082022,1751461842037,-551.32367907,0.00032876,12]
[369082024,1751461842046,-460.0,0.00032876,12]
[369082026,1751461842055,-573.5,0.00032876,12]
[369082028,1751461842065,-460.0,0.00032876,12]
[369082030,1751461842074,-460.0,0.00032876,12]
[369082032,1751461842083,-460.0,0.00032876,12]
[369082034,1751461842093,-460.0,0.00032876,12]
[369082036,1751461842103,-460.0,0.00032876,12]
[369082038,1751461842113,-576.5,0.00032876,12]
[369082040,1751461842122,-508.31,0.00032876,12]
[369082042,1751461842131,-166.20674689,0.00032876,12]
[369082044,1751461842141,-540.12783177,0.00032876,12]
[369082046,1751461842150,-2068.42,0.00032876,12]
[369082048,1751461842159,-445.75222447,0.00032876,12]
[369082050,1751461842168,-460.0,0.00032876,12]
[369082052,1751461842178,-460.0,0.00032876,12]
[369082054,1751461842187,-460.0,0.00032876,12]
[369082056,1751461842197,-460.0,0.00032876,12]
[369082058,1751461842206,-460.0,0.00032876,12]
[369082060,1751461842215,-460.0,0.00032876,12]
[369082062,1751461842225,-460.0,0.00032876,12]
[369082064,1751461842234,-460.0,0.00032876,12]
[369082066,1751461842244,-460.0,0.00032876,12]
[369082068,1751461842253,-460.0,0.00032876,12]
[369082070,1751461842262,-460.0,0.00032876,12]
[369082072,1751461842271,-944.75,0.00032876,12]
[369082074,1751461842281,-460.0,0.00032876,12]
[369082076,1751461842290,-520.0,0.00032876,12]
[369082078,1751461842299,-460.0,0.00032876,12]
[369082080,1751461842309,-222.0,0.00032876,12]
[369082082,1751461842318,-460.0,0.00032876,12]
[369082084,1751461842327,-460.0,0.00032876,12]
[369082086,1751461842336,-460.0,0.00032876,12]
[369082088,1751461842346,-460.0,0.00032876,12]
[369082090,1751461842355,-212.86935129,0.00032876,12]
[369082092,1751461842364,-885.08,0.00032876,12]
[369082094,1751461842373,-226.066157,0.00032876,7]
[369082096,1751461842383,-460.0,0.00032876,12]
[369082098,1751461842393,-460.0,0.00032876,12]
[369082100,1751461842402,-461.44,0.00032876,12]
[369082102,1751461842411,-490.0,0.00032876,12]
[369082104,1751461842420,-1201.63,0.00032876,12]
[369082106,1751461842430,-520.0,0.00032876,12]
[369082108,1751461842440,-460.0,0.00032876,12]
[369082110,1751461842449,-460.0,0.00032876,12]
[369082112,1751461842458,-1504.69,0.00032876,12]
[369082114,1751461842468,-460.0,0.00032876,12]
[369082116,1751461842477,-460.0,0.00032876,12]
[369082118,1751461842487,-158.309617,0.00032876,7]
[369082120,1751461842496,-460.0,0.00032876,12]
[369082122,1751461842505,-520.0,0.00032876,12]
[369082124,1751461842514,-527.42266082,0.00032876,12]
[369082126,1751461842523,-460.0,0.00032876,12]
[369082128,1751461842533,-460.0,0.00032876,12]
[369082130,1751461842542,-492.06536703,0.00032876,12]
[369082132,1751461842551,-460.0,0.00032876,12]
[369082134,1751461842560,-460.0,0.00032876,12]
[369082136,1751461842569,-460.0,0.00032876,12]
[369082138,1751461842579,-460.0,0.00032876,12]
[369082140,1751461842588,-490.0,0.00032876,12]
[369082142,1751461842597,-269.40632935,0.00032876,12]
[369082144,1751461842606,-460.0,0.00032876,12]
[369082146,1751461842614,-460.0,0.00032876,12]
[369082148,1751461842624,-460.0,0.00032876,12]
[369082150,1751461842633,-463.86,0.00032876,12]
[369082152,1751461842642,-460.0,0.00032876,12]
[369082154,1751461842653,-460.0,0.00032876,12]
[369082156,1751461842662,-460.0,0.00032876,12]
[369082158,1751461842672,-460.0,0.00032876,12]
[369082160,1751461842681,-460.0,0.00032876,12]
[369082162,1751461842691,-460.0,0.00032876,12]
[369082164,1751461842702,-1589.24,0.00032876,12]
[369082166,1751461842711,-520.0,0.00032876,12]
[369082168,1751461842723,-460.0,0.00032876,12]
[369082170,1751461842733,-460.0,0.00032876,12]
[369082172,1751461842743,-460.0,0.00032876,12]
[369082174,1751461842752,-460.0,0.00032876,12]
[369082176,1751461842762,-709.02,0.00032876,12]
[369082178,1751461842771,-520.0,0.00032876,12]
[369082180,1751461842781,-460.0,0.00032876,12]
[369082182,1751461842791,-520.0,0.00032876,12]
[369082184,1751461842800,-460.0,0.00032876,12]
[369082186,1751461842810,-769.67,0.00032876,12]
[369082188,1751461842819,-263.57977032,0.00032876,12]
[369082190,1751461842828,-460.0,0.00032876,12]
[369082192,1751461842838,-460.0,0.00032876,12]
[369082194,1751461842848,-473.4991133,0.00032876,12]
[369082196,1751461842857,-460.0,0.00032876,12]
[369082198,1751461842867,-475.07,0.00032876,12]
[369082200,1751461842879,-490.0,0.00032876,12]
[369082202,1751461842888,-4599.47,0.00032876,12]
[369082204,1751461842898,-460.0,0.00032876,12]
[369082206,1751461842908,-539.21,0.00032876,12]
[369082208,1751461842918,-460.0,0.00032876,12]
[369082210,1751461842929,-914.53,0.00032876,12]
[369082212,1751461842938,-460.0,0.00032876,12]
[369082214,1751461842949,-460.0,0.00032876,12]
[369082216,1751461842961,-460.0,0.00032876,12]
[369082218,1751461842971,-887.47,0.00032876,12]
[369082221,1751461842981,-527.88,0.00032876,12]
[369082224,1751461842991,-460.0,0.00032876,12]
[369082227,1751461843000,-1036.46,0.00032876,12]
[369082230,1751461843009,-460.0,0.00032876,12]
[369082233,1751461843019,-460.0,0.00032876,12]
[369082235,1751461843028,-460.0,0.00032876,12]
[369082237,1751461843038,-460.0,0.00032876,12]
[369082239,1751461843047,-460.0,0.00032876,12]
[369082241,1751461843057,-460.0,0.00032876,12]
[369082243,1751461843066,-460.0,0.00032876,12]
[369082245,1751461843076,-589.74,0.00032876,12]
[369082247,1751461843085,-490.0,0.00032876,12]
[369082249,1751461843095,-460.0,0.00032876,12]
[369082251,1751461843104,-562.15,0.00032876,12]
[369082253,1751461843113,-460.0,0.00032876,12]
[369082255,1751461843123,-460.0,0.00032876,12]
[369082289,1751461843431,-490.0,0.00032876,12]
[369082291,1751461843442,-938.24,0.00032876,12]
[369082293,1751461843451,-520.0,0.00032876,12]
[369082295,1751461843460,-460.0,0.00032876,12]
[369082297,1751461843469,-460.0,0.00032876,12]
[369082299,1751461843484,-1313.27,0.00032876,12]
[369082301,1751461843493,-460.0,0.00032876,12]
[369082303,1751461843503,-460.0,0.00032876,12]
[369082305,1751461843512,-460.0,0.00032876,12]
[369082307,1751461843522,-460.0,0.00032876,12]
[369082309,1751461843532,-460.0,0.00032876,12]
[369082311,1751461843541,-460.0,0.00032876,12]
[369082313,1751461843551,-490.0,0.00032876,12]
[369082314,1751461843561,-878.48,0.00032876,12]
[369082316,1751461843570,-460.0,0.00032876,12]
[369082318,1751461843581,-460.0,0.00032876,12]
[369082320,1751461843591,-490.0,0.00032876,12]
[369082322,1751461843600,-460.0,0.00032876,12]
[369082324,1751461843611,-460.0,0.00032876,12]
[369082326,1751461843621,-498.42,0.00032876,12]
[369082328,1751461843631,-460.0,0.00032876,12]
[369082330,1751461843641,-728.56,0.00032876,12]
[369082332,1751461843651,-460.0,0.00032876,12]
[369082334,1751461843660,-176.14198772,0.00032876,12]
[369082336,1751461843671,-460.0,0.00032876,12]
[369082338,1751461843680,-460.0,0.00032876,12]
[369082340,1751461843690,-460.0,0.00032876,12]
[369082342,1751461843700,-460.0,0.00032876,12]
[369082344,1751461843710,-520.0,0.00032876,12]
[369082346,1751461843720,-490.0,0.00032876,12]
[369082348,1751461843729,-460.0,0.00032876,12]
[369082350,1751461843738,-460.0,0.00032876,12]
[369082352,1751461843748,-462.99,0.00032876,12]
[369082354,1751461843758,-460.0,0.00032876,12]
[369082356,1751461843768,-460.0,0.00032876,12]
[369082358,1751461843778,-460.0,0.00032876,12]
[369082360,1751461843788,-523.76889134,0.00032876,12]
[369082362,1751461843797,-1371.6,0.00032876,12]
[369082364,1751461843808,-460.0,0.00032876,12]
[369082366,1751461843818,-383.03223706,0.00032876,12]
[369082368,1751461843828,-460.0,0.00032876,12]
[369082370,1751461843838,-460.0,0.00032876,12]
[369082372,1751461843848,-460.0,0.00032876,12]
[369082374,1751461843859,-525.3748867,0.00032876,12]
[369082376,1751461843871,-460.0,0.00032876,12]
[369082378,1751461843885,-490.0,0.00032876,12]
[369082380,1751461843895,-460.0,0.00032876,12]
[369082382,1751461843905,-549.55,0.00032876,12]
[369082384,1751461843915,-491.19811879,0.00032876,12]
[369082386,1751461843927,-460.0,0.00032876,12]
[369082388,1751461843936,-460.0,0.00032876,12]
[369082390,1751461843946,-460.0,0.00032876,12]
[369082392,1751461843957,-460.0,0.00032876,12]
[369082394,1751461843966,-460.0,0.00032876,12]
[369082396,1751461843976,-795.28,0.00032876,12]
[369082399,1751461843986,-490.0,0.00032876,12]
[369082402,1751461843996,-460.0,0.00032876,12]
[369082405,1751461844006,-154.17291394,0.00032876,2]
[369082408,1751461844015,-704.4,0.00032876,12]
[369082411,1751461844025,-460.0,0.00032876,12]
[369082414,1751461844035,-285.35508976,0.00032876,12]
[369082416,1751461844044,-460.0,0.00032876,12]
[369082418,1751461844054,-460.0,0.00032876,12]
[369082420,1751461844063,-152.31290669,0.00032876,2]
[369082422,1751461844074,-520.0,0.00032876,12]
[369082424,1751461844083,-460.0,0.00032876,12]
[369082426,1751461844093,-460.0,0.00032876,12]
[369082428,1751461844103,-186.389411,0.00032876,12]
[369082430,1751461844113,-150.0,0.00032876,2]
[369082432,1751461844122,-460.0,0.00032876,12]
[369082434,1751461844132,-460.0,0.00032876,12]
[369082436,1751461844142,-174.868854,0.00032876,12]
[369082438,1751461844152,-460.0,0.00032876,12]
[369082440,1751461844161,-490.0,0.00032876,12]
[369082441,1751461844172,-151.0,0.00032876,7]
[369082444,1751461844182,-460.0,0.00032876,12]
[369082445,1751461844193,-1910.3,0.00032876,12]
[369082447,1751461844203,-460.0,0.00032876,12]
[369082449,1751461844212,-460.0,0.00032876,12]
[369082451,1751461844222,-958.52,0.00032876,12]
[369082453,1751461844231,-460.0,0.00032876,12]
[369082455,1751461844240,-460.0,0.00032876,12]
[369082457,1751461844250,-175.98525,0.00032876,12]
[369082459,1751461844260,-460.0,0.00032876,12]
[369082461,1751461844269,-490.0,0.00032876,12]
[369082463,1751461844279,-460.0,0.00032876,12]
[369082465,1751461844288,-527.70526941,0.00032876,12]
[369082467,1751461844298,-281.74672952,0.00032876,12]
[369082469,1751461844307,-460.0,0.00032876,12]
[369082471,1751461844317,-460.0,0.00032876,12]
[369082473,1751461844331,-339.19478739,0.00032876,12]
[369082475,1751461844342,-460.0,0.00032876,12]
[369082477,1751461844351,-460.0,0.00032876,12]
[369082479,1751461844360,-460.0,0.00032876,12]
[369082481,1751461844370,-460.0,0.00032876,12]
[369082483,1751461844379,-460.0,0.00032876,12]
[369082485,1751461844388,-424.3312051,0.00032876,12]
[369082487,1751461844399,-460.0,0.00032876,12]
[369082489,1751461844409,-460.0,0.00032876,12]
[369082491,1751461844419,-556.82,0.00032876,12]
[369082493,1751461844428,-1134.21,0.00032876,12]
[369082495,1751461844439,-460.0,0.00032876,12]
[369082496,1751461844448,-460.0,0.00032876,12]
[369082497,1751461844458,-864.77,0.00032876,12]
[369082498,1751461844467,-300.0,0.00032876,12]
[369082499,1751461844477,-460.0,0.00032876,12]
[369082500,1751461844488,-460.0,0.00032876,12]
[369082501,1751461844498,-490.0,0.00032876,12]
[369082502,1751461844508,-494.33173508,0.00032876,12]
[369082503,1751461844518,-349.50070444,0.00032876,12]
[369082504,1751461844527,-460.0,0.00032876,12]
[369082505,1751461844537,-793.25,0.00032876,12]
[369082506,1751461844546,-460.0,0.00032876,12]
[369082507,1751461844556,-460.0,0.00032876,12]
[369082508,1751461844565,-460.0,0.00032876,12]
[369082509,1751461844575,-1083.61,0.00032876,12]
[369082510,1751461844585,-460.0,0.00032876,12]
[369082511,1751461844594,-460.0,0.00032876,12]
[369082512,1751461844603,-582.39,0.00032876,12]
[369082514,1751461844613,-552.95,0.00032876,12]
[369082516,1751461844622,-460.0,0.00032876,12]
[369082518,1751461844631,-950.59,0.00032876,12]
[369082520,1751461844641,-520.0,0.00032876,12]
[369082522,1751461844651,-460.0,0.00032876,12]
[369082524,1751461844661,-460.0,0.00032876,12]
[369082526,1751461844671,-525.16103318,0.00032876,12]
[369082528,1751461844680,-503.31,0.00032876,12]
[369082530,1751461844690,-460.0,0.00032876,7]
[369082532,1751461844699,-460.0,0.00032876,12]
[369082534,1751461844708,-460.0,0.00032876,12]
[369082536,1751461844717,-460.0,0.00032876,12]
[369082538,1751461844727,-460.0,0.00032876,12]
[369082540,1751461844737,-480.03,0.00032876,12]
[369082542,1751461844746,-460.0,0.00032876,12]
[369082544,1751461844756,-460.0,0.00032876,12]
[369082546,1751461844767,-460.0,0.00032876,12]
[369082548,1751461844776,-759.24,0.00032876,12]
[369082550,1751461844786,-521.85140557,0.00032876,12]
[369082552,1751461844795,-460.0,0.00032876,12]
[369082554,1751461844805,-490.0,0.00032876,12]
[369082556,1751461844814,-460.0,0.00032876,12]
[369082558,1751461844823,-460.0,0.00032876,12]
[369082560,1751461844833,-460.0,0.00032876,12]
[369082562,1751461844843,-460.0,0.00032876,12]
[369082563,1751461844852,-694.68,0.00032876,12]
[369082565,1751461844861,-460.0,0.00032876,12]
[369082567,1751461844871,-460.0,0.00032876,12]
[369082569,1751461844883,-520.0,0.00032876,12]
[369082571,1751461844893,-1242.68,0.00032876,12]
[369082573,1751461844903,-460.0,0.00032876,12]
[369082575,1751461844913,-712.1,0.00032876,12]
[369082577,1751461844923,-502.12,0.00032876,12]
[369082579,1751461844932,-460.0,0.00032876,12]
[369082581,1751461844942,-1580.79,0.00032876,12]
[369082583,1751461844953,-300.81143772,0.00032876,12]
[369082585,1751461844964,-460.0,0.00032876,12]
[369082587,1751461844973,-638.7,0.00032876,12]
[369082589,1751461844983,-508.21,0.00032876,12]
[369082591,1751461844994,-460.0,0.00032876,12]
[369082593,1751461845003,-1539.52,0.00032876,12]
[369082595,1751461845013,-490.0,0.00032876,12]
[369082597,1751461845023,-198.32095271,0.00032876,12]
[369082599,1751461845032,-460.0,0.00032876,12]
[369082601,1751461845042,-627.29,0.00032876,12]
[369082604,1751461845052,-460.0,0.00032876,12]
[369082606,1751461845062,-492.81924393,0.00032876,12]
[369082608,1751461845071,-460.0,0.00032876,12]
[369082610,1751461845082,-460.0,0.00032876,12]
[369082612,1751461845092,-389.33220379,0.00032876,12]
[369082614,1751461845101,-460.0,0.00032876,12]
[369082615,1751461845111,-522.40300981,0.00032876,12]
[369082617,1751461845120,-490.0,0.00032876,12]
[369082620,1751461845130,-520.0,0.00032876,12]
[369082622,1751461845140,-460.0,0.00032876,12]
[369082624,1751461845150,-565.78,0.00032876,12]
[369082625,1751461845160,-460.0,0.00032876,12]
[369082628,1751461845170,-460.0,0.00032876,12]
[369082629,1751461845180,-460.0,0.00032876,12]
[369082631,1751461845190,-460.0,0.00032876,12]
[369082633,1751461845199,-529.18,0.00032876,12]
[369082636,1751461845209,-451.53600982,0.00032876,12]
[369082638,1751461845219,-607.76,0.00032876,12]
[369082639,1751461845228,-460.0,0.00032876,12]
[369082641,1751461845238,-460.0,0.00032876,12]
[369082643,1751461845248,-460.0,0.00032876,12]
[369082645,1751461845257,-445.27465207,0.00032876,12]
[369082647,1751461845267,-553.59,0.00032876,12]
[369082649,1751461845276,-460.0,0.00032876,12]
[369082651,1751461845286,-460.0,0.00032876,12]
[369082653,1751461845295,-985.75,0.00032876,12]
[369082655,1751461845306,-490.0,0.00032876,12]
[369082658,1751461845317,-594.38,0.00032876,12]
[369082660,1751461845326,-460.0,0.00032876,12]
[369082662,1751461845336,-460.0,0.00032876,12]
[369082663,1751461845345,-460.0,0.00032876,12]
[369082665,1751461845354,-460.0,0.00032876,12]
[369082668,1751461845364,-460.0,0.00032876,12]
[369082670,1751461845373,-460.0,0.00032876,12]
[369082672,1751461845383,-334.48378776,0.00032876,12]
[369082674,1751461845392,-1010.82,0.00032876,10]
[369082676,1751461845402,-460.0,0.00032876,12]
[369082678,1751461845412,-460.0,0.00032876,12]
[369082680,1751461845421,-461.03,0.00032876,12]
[369082682,1751461845431,-460.0,0.00032876,12]
[369082683,1751461845440,-460.0,0.00032876,12]
[369082685,1751461845450,-235.84341816,0.00032876,12]
[369082687,1751461845459,-490.0,0.00032876,12]
[369082689,1751461845469,-460.0,0.00032876,12]
[369082692,1751461845478,-626.96,0.00032876,12]
[369082694,1751461845488,-460.0,0.00032876,12]
[369082695,1751461845500,-460.0,0.00032876,12]
[369082697,1751461845509,-460.0,0.00032876,12]
[369082699,1751461845519,-460.0,0.00032876,12]
[369082702,1751461845529,-460.0,0.00032876,12]
[369082704,1751461845538,-460.0,0.00032876,12]
[369082706,1751461845548,-521.67916601,0.00032876,12]
[369082708,1751461845557,-460.0,0.00032876,12]
[369082709,1751461845567,-500.0,0.00032876,12]
[369082711,1751461845577,-1069.03,0.00032876,12]
[369082713,1751461845586,-460.0,0.00032876,12]
[369082715,1751461845596,-520.0,0.00032876,12]
[369082717,1751461845606,-460.0,0.00032876,12]
[369082719,1751461845615,-820.11,0.00032876,12]
[369082721,1751461845624,-460.0,0.00032876,12]
[369082723,1751461845634,-490.0,0.00032876,12]
[369082725,1751461845643,-460.0,0.00032876,12]
[369082727,1751461845653,-567.93,0.00032876,12]
[369082729,1751461845663,-474.84,0.00032876,12]
[369082730,1751461845671,-460.0,0.00032876,12]
[369082732,1751461845681,-460.0,0.00032876,12]
[369082734,1751461845691,-550.0,0.00032876,12]
[369082736,1751461845700,-460.0,0.00032876,12]
[369082737,1751461845710,-460.0,0.00032876,12]
[369082739,1751461845719,-327.02840173,0.00032876,12]
[369082741,1751461845729,-460.0,0.00032876,12]
[369082743,1751461845738,-500.0,0.00032876,2]
[369082745,1751461845748,-460.0,0.00032876,12]